Workbook

Sheet City200
D10: Locations | E10: X | F10: Y | G10: Demand | H10: Site Picked? (1 = Yes, 0 = No) | I10: Objective | J10: WH Capacity | K10: WH TH | AC10: WH Picked (X) | AD10: WH Picked (Y) | AE10: WH 1 (X) | AF10: WH 1 (Y) | AG10: WH2 (X) | AH10: WH2 (Y) | AI10: WH3 (X) | AJ10: WH3 (Y)
D11: 1 | E11: 708 | F11: 331 | G11: 3900 | H11: 0 | AC11: =IF($H11=0,-1,E11) -> -1 | AD11: =IF($H11=0,-1,F11) -> -1 | AE11: -1 | AF11: -1 | AG11: -1 | AH11: -1 | AI11: 708 | AJ11: 331
D12: 2 | E12: 54 | F12: 992 | G12: 25200 | H12: 0 | AC12: -1 | AD12: -1 | AE12: 54 | AF12: 992 | AG12: -1 | AH12: -1 | AI12: -1 | AJ12: -1
D13: 3 | E13: 628 | F13: 840 | G13: 24200 | H13: 0 | AC13: -1 | AD13: -1 | AE13: -1 | AF13: -1 | AG13: 628 | AH13: 840 | AI13: -1 | AJ13: -1
D14: 4 | E14: 817 | F14: 715 | G14: 15300 | H14: 0 | AC14: -1 | AD14: -1 | AE14: -1 | AF14: -1 | AG14: 817 | AH14: 715 | AI14: -1 | AJ14: -1
D15: 5 | E15: 664 | F15: 502 | G15: 5100 | H15: 0 | AC15: -1 | AD15: -1 | AE15: -1 | AF15: -1 | AG15: -1 | AH15: -1 | AI15: 664 | AJ15: 502
D16: 6 | E16: 20 | F16: 909 | G16: 26700 | H16: 0 | AC16: -1 | AD16: -1 | AE16: 20 | AF16: 909 | AG16: -1 | AH16: -1 | AI16: -1 | AJ16: -1
D17: 7 | E17: 300 | F17: 684 | G17: 2500 | H17: 0 | AC17: -1 | AD17: -1 | AE17: 300 | AF17: 684 | AG17: -1 | AH17: -1 | AI17: -1 | AJ17: -1
D18: 8 | E18: 732 | F18: 568 | G18: 3200 | H18: 0 | AC18: -1 | AD18: -1 | AE18: -1 | AF18: -1 | AG18: 732 | AH18: 568 | AI18: -1 | AJ18: -1
D19: 9 | E19: 498 | F19: 715 | G19: 1100 | H19: 0 | AC19: -1 | AD19: -1 | AE19: -1 | AF19: -1 | AG19: 498 | AH19: 715 | AI19: -1 | AJ19: -1
D20: 10 | E20: 246 | F20: 275 | G20: 2300 | H20: 0 | AC20: -1 | AD20: -1 | AE20: 246 | AF20: 275 | AG20: -1 | AH20: -1 | AI20: -1 | AJ20: -1
D21: 11 | E21: 890 | F21: 890 | G21: 17700 | H21: 0 | AC21: -1 | AD21: -1 | AE21: -1 | AF21: -1 | AG21: 890 | AH21: 890 | AI21: -1 | AJ21: -1
D22: 12 | E22: 18 | F22: 219 | G22: 2800 | H22: 0 | AC22: -1 | AD22: -1 | AE22: 18 | AF22: 219 | AG22: -1 | AH22: -1 | AI22: -1 | AJ22: -1
D23: 13 | E23: 114 | F23: 822 | G23: 5700 | H23: 0 | AC23: -1 | AD23: -1 | AE23: 114 | AF23: 822 | AG23: -1 | AH23: -1 | AI23: -1 | AJ23: -1
D24: 14 | E24: 679 | F24: 329 | G24: 400 | H24: 0 | AC24: -1 | AD24: -1 | AE24: -1 | AF24: -1 | AG24: -1 | AH24: -1 | AI24: 679 | AJ24: 329
D25: 15 | E25: 211 | F25: 126 | G25: 7800 | H25: 0 | AC25: -1 | AD25: -1 | AE25: -1 | AF25: -1 | AG25: -1 | AH25: -1 | AI25: 211 | AJ25: 126
D26: 16 | E26: 521 | F26: 260 | G26: 400 | H26: 0 | AC26: -1 | AD26: -1 | AE26: -1 | AF26: -1 | AG26: -1 | AH26: -1 | AI26: 521 | AJ26: 260
D27: 17 | E27: 210 | F27: 996 | G27: 32100 | H27: 0 | AC27: -1 | AD27: -1 | AE27: 210 | AF27: 996 | AG27: -1 | AH27: -1 | AI27: -1 | AJ27: -1
D28: 18 | E28: 806 | F28: 282 | G28: 13400 | H28: 0 | AC28: -1 | AD28: -1 | AE28: -1 | AF28: -1 | AG28: -1 | AH28: -1 | AI28: 806 | AJ28: 282
D29: 19 | E29: 500 | F29: 370 | G29: 4400 | H29: 0 | AC29: -1 | AD29: -1 | AE29: -1 | AF29: -1 | AG29: -1 | AH29: -1 | AI29: 500 | AJ29: 370
D30: 20 | E30: 256 | F30: 484 | G30: 1700 | H30: 0 | AC30: -1 | AD30: -1 | AE30: 256 | AF30: 484 | AG30: -1 | AH30: -1 | AI30: -1 | AJ30: -1
D31: 21 | E31: 159 | F31: 517 | G31: 29300 | H31: 0 | AC31: -1 | AD31: -1 | AE31: 159 | AF31: 517 | AG31: -1 | AH31: -1 | AI31: -1 | AJ31: -1
D32: 22 | E32: 210 | F32: 210 | G32: 500 | H32: 0 | AC32: -1 | AD32: -1 | AE32: -1 | AF32: -1 | AG32: -1 | AH32: -1 | AI32: 210 | AJ32: 210
D33: 23 | E33: 714 | F33: 257 | G33: 4000 | H33: 0 | AC33: -1 | AD33: -1 | AE33: -1 | AF33: -1 | AG33: -1 | AH33: -1 | AI33: 714 | AJ33: 257
D34: 24 | E34: 971 | F34: 399 | G34: 3300 | H34: 0 | AC34: -1 | AD34: -1 | AE34: -1 | AF34: -1 | AG34: -1 | AH34: -1 | AI34: 971 | AJ34: 399
D35: 25 | E35: 287 | F35: 850 | G35: 23400 | H35: 0 | AC35: -1 | AD35: -1 | AE35: 287 | AF35: 850 | AG35: -1 | AH35: -1 | AI35: -1 | AJ35: -1
D36: 26 | E36: 759 | F36: 503 | G36: 2600 | H36: 0 | AC36: -1 | AD36: -1 | AE36: -1 | AF36: -1 | AG36: -1 | AH36: -1 | AI36: 759 | AJ36: 503
D37: 27 | E37: 689 | F37: 961 | G37: 17400 | H37: 0 | AC37: -1 | AD37: -1 | AE37: -1 | AF37: -1 | AG37: 689 | AH37: 961 | AI37: -1 | AJ37: -1
D38: 28 | E38: 240 | F38: 247 | G38: 3000 | H38: 0 | AC38: -1 | AD38: -1 | AE38: -1 | AF38: -1 | AG38: -1 | AH38: -1 | AI38: 240 | AJ38: 247
D39: 29 | E39: 22 | F39: 586 | G39: 18000 | H39: 0 | AC39: -1 | AD39: -1 | AE39: 22 | AF39: 586 | AG39: -1 | AH39: -1 | AI39: -1 | AJ39: -1
D40: 30 | E40: 997 | F40: 673 | G40: 13400 | H40: 0 | AC40: -1 | AD40: -1 | AE40: -1 | AF40: -1 | AG40: 997 | AH40: 673 | AI40: -1 | AJ40: -1
D41: 31 | E41: 811 | F41: 389 | G41: 37900 | H41: 0 | AC41: -1 | AD41: -1 | AE41: -1 | AF41: -1 | AG41: -1 | AH41: -1 | AI41: 811 | AJ41: 389
D42: 32 | E42: 458 | F42: 850 | G42: 18400 | H42: 0 | AC42: -1 | AD42: -1 | AE42: -1 | AF42: -1 | AG42: 458 | AH42: 850 | AI42: -1 | AJ42: -1
D43: 33 | E43: 681 | F43: 492 | G43: 2100 | H43: 0 | AC43: =IF($H43=0,-1,E43) -> -1 | AD43: =IF($H43=0,-1,F43) -> -1 | AE43: -1 | AF43: -1 | AG43: -1 | AH43: -1 | AI43: 681 | AJ43: 492
D44: 34 | E44: 658 | F44: 984 | G44: 13500 | H44: 0 | AC44: -1 | AD44: -1 | AE44: -1 | AF44: -1 | AG44: 658 | AH44: 984 | AI44: -1 | AJ44: -1
D45: 35 | E45: 371 | F45: 989 | G45: 12000 | H45: 0 | AC45: -1 | AD45: -1 | AE45: -1 | AF45: -1 | AG45: 371 | AH45: 989 | AI45: -1 | AJ45: -1
D46: 36 | E46: 346 | F46: 189 | G46: 23800 | H46: 0 | AC46: -1 | AD46: -1 | AE46: -1 | AF46: -1 | AG46: -1 | AH46: -1 | AI46: 346 | AJ46: 189
D47: 37 | E47: 409 | F47: 574 | G47: 1700 | H47: 0 | AC47: -1 | AD47: -1 | AE47: 409 | AF47: 574 | AG47: -1 | AH47: -1 | AI47: -1 | AJ47: -1
D48: 38 | E48: 403 | F48: 367 | G48: 3600 | H48: 0 | AC48: -1 | AD48: -1 | AE48: -1 | AF48: -1 | AG48: -1 | AH48: -1 | AI48: 403 | AJ48: 367
D49: 39 | E49: 515 | F49: 153 | G49: 4600 | H49: 0 | AC49: -1 | AD49: -1 | AE49: -1 | AF49: -1 | AG49: -1 | AH49: -1 | AI49: 515 | AJ49: 153
D50: 40 | E50: 994 | F50: 47 | G50: 21600 | H50: 0 | AC50: -1 | AD50: -1 | AE50: -1 | AF50: -1 | AG50: -1 | AH50: -1 | AI50: 994 | AJ50: 47
D51: 41 | E51: 154 | F51: 719 | G51: 10500 | H51: 0 | AC51: -1 | AD51: -1 | AE51: 154 | AF51: 719 | AG51: -1 | AH51: -1 | AI51: -1 | AJ51: -1
D52: 42 | E52: 438 | F52: 541 | G52: 3300 | H52: 0 | AC52: -1 | AD52: -1 | AE52: 438 | AF52: 541 | AG52: -1 | AH52: -1 | AI52: -1 | AJ52: -1
D53: 43 | E53: 519 | F53: 515 | G53: 2400 | H53: 0 | AC53: -1 | AD53: -1 | AE53: -1 | AF53: -1 | AG53: -1 | AH53: -1 | AI53: 519 | AJ53: 515
D54: 44 | E54: 148 | F54: 409 | G54: 16700 | H54: 0 | AC54: -1 | AD54: -1 | AE54: 148 | AF54: 409 | AG54: -1 | AH54: -1 | AI54: -1 | AJ54: -1
D55: 45 | E55: 874 | F55: 199 | G55: 34600 | H55: 0 | AC55: -1 | AD55: -1 | AE55: -1 | AF55: -1 | AG55: -1 | AH55: -1 | AI55: 874 | AJ55: 199
D56: 46 | E56: 70 | F56: 610 | G56: 36400 | H56: 0 | AC56: -1 | AD56: -1 | AE56: 70 | AF56: 610 | AG56: -1 | AH56: -1 | AI56: -1 | AJ56: -1
D57: 47 | E57: 530 | F57: 466 | G57: 700 | H57: 0 | AC57: -1 | AD57: -1 | AE57: -1 | AF57: -1 | AG57: -1 | AH57: -1 | AI57: 530 | AJ57: 466
D58: 48 | E58: 641 | F58: 142 | G58: 27700 | H58: 0 | AC58: -1 | AD58: -1 | AE58: -1 | AF58: -1 | AG58: -1 | AH58: -1 | AI58: 641 | AJ58: 142
D59: 49 | E59: 515 | F59: 940 | G59: 12000 | H59: 0 | AC59: -1 | AD59: -1 | AE59: -1 | AF59: -1 | AG59: 515 | AH59: 940 | AI59: -1 | AJ59: -1
D60: 50 | E60: 500 | F60: 517 | G60: 4400 | H60: 0 | AC60: -1 | AD60: -1 | AE60: -1 | AF60: -1 | AG60: -1 | AH60: -1 | AI60: 500 | AJ60: 517
D61: 51 | E61: 913 | F61: 458 | G61: 25700 | H61: 0 | AC61: -1 | AD61: -1 | AE61: -1 | AF61: -1 | AG61: -1 | AH61: -1 | AI61: 913 | AJ61: 458
D62: 52 | E62: 32 | F62: 724 | G62: 3100 | H62: 0 | AC62: -1 | AD62: -1 | AE62: 32 | AF62: 724 | AG62: -1 | AH62: -1 | AI62: -1 | AJ62: -1
D63: 53 | E63: 701 | F63: 526 | G63: 3200 | H63: 0 | AC63: -1 | AD63: -1 | AE63: -1 | AF63: -1 | AG63: 701 | AH63: 526 | AI63: -1 | AJ63: -1
D64: 54 | E64: 770 | F64: 945 | G64: 13500 | H64: 0 | AC64: -1 | AD64: -1 | AE64: -1 | AF64: -1 | AG64: 770 | AH64: 945 | AI64: -1 | AJ64: -1
D65: 55 | E65: 930 | F65: 273 | G65: 12700 | H65: 0 | AC65: -1 | AD65: -1 | AE65: -1 | AF65: -1 | AG65: -1 | AH65: -1 | AI65: 930 | AJ65: 273
D66: 56 | E66: 736 | F66: 137 | G66: 4500 | H66: 0 | AC66: -1 | AD66: -1 | AE66: -1 | AF66: -1 | AG66: -1 | AH66: -1 | AI66: 736 | AJ66: 137
D67: 57 | E67: 701 | F67: 534 | G67: 2900 | H67: 0 | AC67: -1 | AD67: -1 | AE67: -1 | AF67: -1 | AG67: 701 | AH67: 534 | AI67: -1 | AJ67: -1
D68: 58 | E68: 471 | F68: 704 | G68: 700 | H68: 0 | AC68: -1 | AD68: -1 | AE68: -1 | AF68: -1 | AG68: 471 | AH68: 704 | AI68: -1 | AJ68: -1
D69: 59 | E69: 646 | F69: 863 | G69: 11000 | H69: 0 | AC69: -1 | AD69: -1 | AE69: -1 | AF69: -1 | AG69: 646 | AH69: 863 | AI69: -1 | AJ69: -1
D70: 60 | E70: 122 | F70: 28 | G70: 10100 | H70: 0 | AC70: -1 | AD70: -1 | AE70: -1 | AF70: -1 | AG70: -1 | AH70: -1 | AI70: 122 | AJ70: 28
D71: 61 | E71: 556 | F71: 969 | G71: 35400 | H71: 0 | AC71: -1 | AD71: -1 | AE71: -1 | AF71: -1 | AG71: 556 | AH71: 969 | AI71: -1 | AJ71: -1
D72: 62 | E72: 812 | F72: 293 | G72: 20700 | H72: 0 | AC72: -1 | AD72: -1 | AE72: -1 | AF72: -1 | AG72: -1 | AH72: -1 | AI72: 812 | AJ72: 293
D73: 63 | E73: 490 | F73: 8 | G73: 27700 | H73: 0 | AC73: -1 | AD73: -1 | AE73: -1 | AF73: -1 | AG73: -1 | AH73: -1 | AI73: 490 | AJ73: 8
D74: 64 | E74: 393 | F74: 895 | G74: 32800 | H74: 0 | AC74: -1 | AD74: -1 | AE74: -1 | AF74: -1 | AG74: 393 | AH74: 895 | AI74: -1 | AJ74: -1
D75: 65 | E75: 545 | F75: 399 | G75: 4200 | H75: 0 | AC75: =IF($H75=0,-1,E75) -> -1 | AD75: =IF($H75=0,-1,F75) -> -1 | AE75: -1 | AF75: -1 | AG75: -1 | AH75: -1 | AI75: 545 | AJ75: 399
D76: 66 | E76: 349 | F76: 502 | G76: 900 | H76: 0 | AC76: -1 | AD76: -1 | AE76: 349 | AF76: 502 | AG76: -1 | AH76: -1 | AI76: -1 | AJ76: -1
D77: 67 | E77: 798 | F77: 919 | G77: 18500 | H77: 0 | AC77: -1 | AD77: -1 | AE77: -1 | AF77: -1 | AG77: 798 | AH77: 919 | AI77: -1 | AJ77: -1
D78: 68 | E78: 593 | F78: 684 | G78: 3400 | H78: 0 | AC78: -1 | AD78: -1 | AE78: -1 | AF78: -1 | AG78: 593 | AH78: 684 | AI78: -1 | AJ78: -1
D79: 69 | E79: 552 | F79: 663 | G79: 2300 | H79: 0 | AC79: -1 | AD79: -1 | AE79: -1 | AF79: -1 | AG79: 552 | AH79: 663 | AI79: -1 | AJ79: -1
D80: 70 | E80: 801 | F80: 759 | G80: 8500 | H80: 0 | AC80: -1 | AD80: -1 | AE80: -1 | AF80: -1 | AG80: 801 | AH80: 759 | AI80: -1 | AJ80: -1
D81: 71 | E81: 323 | F81: 499 | G81: 2400 | H81: 0 | AC81: -1 | AD81: -1 | AE81: 323 | AF81: 499 | AG81: -1 | AH81: -1 | AI81: -1 | AJ81: -1
D82: 72 | E82: 77 | F82: 686 | G82: 27700 | H82: 1 | K82: 890800 | AC82: 77 | AD82: 686 | AE82: 77 | AF82: 686 | AG82: -1 | AH82: -1 | AI82: -1 | AJ82: -1
D83: 73 | E83: 221 | F83: 608 | G83: 300 | H83: 0 | AC83: -1 | AD83: -1 | AE83: 221 | AF83: 608 | AG83: -1 | AH83: -1 | AI83: -1 | AJ83: -1
D84: 74 | E84: 282 | F84: 835 | G84: 4200 | H84: 0 | AC84: -1 | AD84: -1 | AE84: 282 | AF84: 835 | AG84: -1 | AH84: -1 | AI84: -1 | AJ84: -1
D85: 75 | E85: 855 | F85: 998 | G85: 20600 | H85: 0 | AC85: -1 | AD85: -1 | AE85: -1 | AF85: -1 | AG85: 855 | AH85: 998 | AI85: -1 | AJ85: -1
D86: 76 | E86: 286 | F86: 907 | G86: 4900 | H86: 0 | AC86: -1 | AD86: -1 | AE86: 286 | AF86: 907 | AG86: -1 | AH86: -1 | AI86: -1 | AJ86: -1
D87: 77 | E87: 825 | F87: 888 | G87: 15700 | H87: 0 | AC87: -1 | AD87: -1 | AE87: -1 | AF87: -1 | AG87: 825 | AH87: 888 | AI87: -1 | AJ87: -1
D88: 78 | E88: 692 | F88: 857 | G88: 29400 | H88: 1 | K88: 710100 | AC88: 692 | AD88: 857 | AE88: -1 | AF88: -1 | AG88: 692 | AH88: 857 | AI88: -1 | AJ88: -1
D89: 79 | E89: 289 | F89: 710 | G89: 400 | H89: 0 | AC89: -1 | AD89: -1 | AE89: 289 | AF89: 710 | AG89: -1 | AH89: -1 | AI89: -1 | AJ89: -1
D90: 80 | E90: 679 | F90: 966 | G90: 5400 | H90: 0 | AC90: -1 | AD90: -1 | AE90: -1 | AF90: -1 | AG90: 679 | AH90: 966 | AI90: -1 | AJ90: -1
D91: 81 | E91: 586 | F91: 15 | G91: 18700 | H91: 0 | AC91: -1 | AD91: -1 | AE91: -1 | AF91: -1 | AG91: -1 | AH91: -1 | AI91: 586 | AJ91: 15
D92: 82 | E92: 564 | F92: 671 | G92: 2200 | H92: 0 | AC92: -1 | AD92: -1 | AE92: -1 | AF92: -1 | AG92: 564 | AH92: 671 | AI92: -1 | AJ92: -1
D93: 83 | E93: 114 | F93: 921 | G93: 24200 | H93: 0 | AC93: -1 | AD93: -1 | AE93: 114 | AF93: 921 | AG93: -1 | AH93: -1 | AI93: -1 | AJ93: -1
D94: 84 | E94: 20 | F94: 531 | G94: 36300 | H94: 0 | AC94: -1 | AD94: -1 | AE94: 20 | AF94: 531 | AG94: -1 | AH94: -1 | AI94: -1 | AJ94: -1
D95: 85 | E95: 116 | F95: 401 | G95: 19500 | H95: 0 | AC95: -1 | AD95: -1 | AE95: 116 | AF95: 401 | AG95: -1 | AH95: -1 | AI95: -1 | AJ95: -1
D96: 86 | E96: 408 | F96: 261 | G96: 1500 | H96: 0 | AC96: -1 | AD96: -1 | AE96: -1 | AF96: -1 | AG96: -1 | AH96: -1 | AI96: 408 | AJ96: 261
D97: 87 | E97: 504 | F97: 196 | G97: 19800 | H97: 0 | AC97: -1 | AD97: -1 | AE97: -1 | AF97: -1 | AG97: -1 | AH97: -1 | AI97: 504 | AJ97: 196
D98: 88 | E98: 340 | F98: 227 | G98: 4100 | H98: 0 | AC98: -1 | AD98: -1 | AE98: -1 | AF98: -1 | AG98: -1 | AH98: -1 | AI98: 340 | AJ98: 227
D99: 89 | E99: 140 | F99: 835 | G99: 8200 | H99: 0 | AC99: -1 | AD99: -1 | AE99: 140 | AF99: 835 | AG99: -1 | AH99: -1 | AI99: -1 | AJ99: -1
D100: 90 | E100: 800 | F100: 531 | G100: 3100 | H100: 0 | AC100: -1 | AD100: -1 | AE100: -1 | AF100: -1 | AG100: 800 | AH100: 531 | AI100: -1 | AJ100: -1
D101: 91 | E101: 222 | F101: 218 | G101: 4000 | H101: 0 | AC101: -1 | AD101: -1 | AE101: -1 | AF101: -1 | AG101: -1 | AH101: -1 | AI101: 222 | AJ101: 218
D102: 92 | E102: 134 | F102: 535 | G102: 28600 | H102: 0 | AC102: -1 | AD102: -1 | AE102: 134 | AF102: 535 | AG102: -1 | AH102: -1 | AI102: -1 | AJ102: -1
D103: 93 | E103: 864 | F103: 749 | G103: 21700 | H103: 0 | AC103: -1 | AD103: -1 | AE103: -1 | AF103: -1 | AG103: 864 | AH103: 749 | AI103: -1 | AJ103: -1
D104: 94 | E104: 691 | F104: 974 | G104: 33000 | H104: 0 | AC104: -1 | AD104: -1 | AE104: -1 | AF104: -1 | AG104: 691 | AH104: 974 | AI104: -1 | AJ104: -1
D105: 95 | E105: 283 | F105: 224 | G105: 2300 | H105: 0 | AC105: -1 | AD105: -1 | AE105: -1 | AF105: -1 | AG105: -1 | AH105: -1 | AI105: 283 | AJ105: 224
D106: 96 | E106: 262 | F106: 510 | G106: 600 | H106: 0 | AC106: -1 | AD106: -1 | AE106: 262 | AF106: 510 | AG106: -1 | AH106: -1 | AI106: -1 | AJ106: -1
D107: 97 | E107: 294 | F107: 89 | G107: 32700 | H107: 0 | AC107: =IF($H107=0,-1,E107) -> -1 | AD107: =IF($H107=0,-1,F107) -> -1 | AE107: -1 | AF107: -1 | AG107: -1 | AH107: -1 | AI107: 294 | AJ107: 89
D108: 98 | E108: 807 | F108: 59 | G108: 15800 | H108: 0 | AC108: -1 | AD108: -1 | AE108: -1 | AF108: -1 | AG108: -1 | AH108: -1 | AI108: 807 | AJ108: 59
D109: 99 | E109: 928 | F109: 732 | G109: 15400 | H109: 0 | AC109: -1 | AD109: -1 | AE109: -1 | AF109: -1 | AG109: 928 | AH109: 732 | AI109: -1 | AJ109: -1
D110: 100 | E110: 869 | F110: 454 | G110: 3700 | H110: 0 | AC110: -1 | AD110: -1 | AE110: -1 | AF110: -1 | AG110: -1 | AH110: -1 | AI110: 869 | AJ110: 454
D111: 101 | E111: 987 | F111: 980 | G111: 13000 | H111: 0 | AC111: -1 | AD111: -1 | AE111: -1 | AF111: -1 | AG111: 987 | AH111: 980 | AI111: -1 | AJ111: -1
D112: 102 | E112: 417 | F112: 777 | G112: 1000 | H112: 0 | AC112: -1 | AD112: -1 | AE112: -1 | AF112: -1 | AG112: 417 | AH112: 777 | AI112: -1 | AJ112: -1
D113: 103 | E113: 651 | F113: 758 | G113: 1200 | H113: 0 | AC113: -1 | AD113: -1 | AE113: -1 | AF113: -1 | AG113: 651 | AH113: 758 | AI113: -1 | AJ113: -1
D114: 104 | E114: 728 | F114: 546 | G114: 3100 | H114: 0 | AC114: -1 | AD114: -1 | AE114: -1 | AF114: -1 | AG114: 728 | AH114: 546 | AI114: -1 | AJ114: -1
D115: 105 | E115: 9 | F115: 699 | G115: 4900 | H115: 0 | AC115: -1 | AD115: -1 | AE115: 9 | AF115: 699 | AG115: -1 | AH115: -1 | AI115: -1 | AJ115: -1
D116: 106 | E116: 622 | F116: 205 | G116: 800 | H116: 0 | AC116: -1 | AD116: -1 | AE116: -1 | AF116: -1 | AG116: -1 | AH116: -1 | AI116: 622 | AJ116: 205
D117: 107 | E117: 765 | F117: 104 | G117: 16200 | H117: 0 | AC117: -1 | AD117: -1 | AE117: -1 | AF117: -1 | AG117: -1 | AH117: -1 | AI117: 765 | AJ117: 104
D118: 108 | E118: 57 | F118: 648 | G118: 30100 | H118: 0 | AC118: -1 | AD118: -1 | AE118: 57 | AF118: 648 | AG118: -1 | AH118: -1 | AI118: -1 | AJ118: -1
D119: 109 | E119: 137 | F119: 396 | G119: 16600 | H119: 0 | AC119: -1 | AD119: -1 | AE119: 137 | AF119: 396 | AG119: -1 | AH119: -1 | AI119: -1 | AJ119: -1
D120: 110 | E120: 781 | F120: 167 | G120: 22200 | H120: 0 | AC120: -1 | AD120: -1 | AE120: -1 | AF120: -1 | AG120: -1 | AH120: -1 | AI120: 781 | AJ120: 167
D121: 111 | E121: 387 | F121: 426 | G121: 700 | H121: 0 | AC121: -1 | AD121: -1 | AE121: -1 | AF121: -1 | AG121: -1 | AH121: -1 | AI121: 387 | AJ121: 426
D122: 112 | E122: 592 | F122: 475 | G122: 4000 | H122: 0 | AC122: -1 | AD122: -1 | AE122: -1 | AF122: -1 | AG122: -1 | AH122: -1 | AI122: 592 | AJ122: 475
D123: 113 | E123: 131 | F123: 833 | G123: 13800 | H123: 0 | AC123: -1 | AD123: -1 | AE123: 131 | AF123: 833 | AG123: -1 | AH123: -1 | AI123: -1 | AJ123: -1
D124: 114 | E124: 208 | F124: 440 | G124: 300 | H124: 0 | AC124: -1 | AD124: -1 | AE124: 208 | AF124: 440 | AG124: -1 | AH124: -1 | AI124: -1 | AJ124: -1
D125: 115 | E125: 198 | F125: 277 | G125: 27100 | H125: 0 | AC125: -1 | AD125: -1 | AE125: 198 | AF125: 277 | AG125: -1 | AH125: -1 | AI125: -1 | AJ125: -1
D126: 116 | E126: 972 | F126: 687 | G126: 25000 | H126: 0 | AC126: -1 | AD126: -1 | AE126: -1 | AF126: -1 | AG126: 972 | AH126: 687 | AI126: -1 | AJ126: -1
D127: 117 | E127: 909 | F127: 448 | G127: 11300 | H127: 0 | AC127: -1 | AD127: -1 | AE127: -1 | AF127: -1 | AG127: -1 | AH127: -1 | AI127: 909 | AJ127: 448
D128: 118 | E128: 64 | F128: 45 | G128: 12200 | H128: 0 | AC128: -1 | AD128: -1 | AE128: 64 | AF128: 45 | AG128: -1 | AH128: -1 | AI128: -1 | AJ128: -1
D129: 119 | E129: 332 | F129: 808 | G129: 30900 | H129: 0 | AC129: -1 | AD129: -1 | AE129: 332 | AF129: 808 | AG129: -1 | AH129: -1 | AI129: -1 | AJ129: -1
D130: 120 | E130: 148 | F130: 853 | G130: 3100 | H130: 0 | AC130: -1 | AD130: -1 | AE130: 148 | AF130: 853 | AG130: -1 | AH130: -1 | AI130: -1 | AJ130: -1
D131: 121 | E131: 321 | F131: 381 | G131: 600 | H131: 0 | AC131: -1 | AD131: -1 | AE131: 321 | AF131: 381 | AG131: -1 | AH131: -1 | AI131: -1 | AJ131: -1
D132: 122 | E132: 986 | F132: 703 | G132: 27800 | H132: 0 | AC132: -1 | AD132: -1 | AE132: -1 | AF132: -1 | AG132: 986 | AH132: 703 | AI132: -1 | AJ132: -1
D133: 123 | E133: 275 | F133: 135 | G133: 10100 | H133: 0 | AC133: -1 | AD133: -1 | AE133: -1 | AF133: -1 | AG133: -1 | AH133: -1 | AI133: 275 | AJ133: 135
D134: 124 | E134: 218 | F134: 945 | G134: 12900 | H134: 0 | AC134: -1 | AD134: -1 | AE134: 218 | AF134: 945 | AG134: -1 | AH134: -1 | AI134: -1 | AJ134: -1
D135: 125 | E135: 71 | F135: 79 | G135: 5900 | H135: 0 | AC135: -1 | AD135: -1 | AE135: 71 | AF135: 79 | AG135: -1 | AH135: -1 | AI135: -1 | AJ135: -1
D136: 126 | E136: 366 | F136: 367 | G136: 1600 | H136: 0 | AC136: -1 | AD136: -1 | AE136: -1 | AF136: -1 | AG136: -1 | AH136: -1 | AI136: 366 | AJ136: 367
D137: 127 | E137: 57 | F137: 712 | G137: 17200 | H137: 0 | AC137: -1 | AD137: -1 | AE137: 57 | AF137: 712 | AG137: -1 | AH137: -1 | AI137: -1 | AJ137: -1
D138: 128 | E138: 365 | F138: 654 | G138: 1700 | H138: 0 | AC138: -1 | AD138: -1 | AE138: 365 | AF138: 654 | AG138: -1 | AH138: -1 | AI138: -1 | AJ138: -1
D139: 129 | E139: 161 | F139: 548 | G139: 13100 | H139: 0 | AC139: =IF($H139=0,-1,E139) -> -1 | AD139: =IF($H139=0,-1,F139) -> -1 | AE139: 161 | AF139: 548 | AG139: -1 | AH139: -1 | AI139: -1 | AJ139: -1
D140: 130 | E140: 165 | F140: 49 | G140: 10400 | H140: 0 | AC140: -1 | AD140: -1 | AE140: -1 | AF140: -1 | AG140: -1 | AH140: -1 | AI140: 165 | AJ140: 49
D141: 131 | E141: 115 | F141: 85 | G141: 7500 | H141: 0 | AC141: -1 | AD141: -1 | AE141: -1 | AF141: -1 | AG141: -1 | AH141: -1 | AI141: 115 | AJ141: 85
D142: 132 | E142: 381 | F142: 253 | G142: 3700 | H142: 0 | AC142: -1 | AD142: -1 | AE142: -1 | AF142: -1 | AG142: -1 | AH142: -1 | AI142: 381 | AJ142: 253
D143: 133 | E143: 647 | F143: 980 | G143: 26500 | H143: 0 | AC143: -1 | AD143: -1 | AE143: -1 | AF143: -1 | AG143: 647 | AH143: 980 | AI143: -1 | AJ143: -1
D144: 134 | E144: 406 | F144: 17 | G144: 15000 | H144: 0 | AC144: -1 | AD144: -1 | AE144: -1 | AF144: -1 | AG144: -1 | AH144: -1 | AI144: 406 | AJ144: 17
D145: 135 | E145: 273 | F145: 437 | G145: 2000 | H145: 0 | AC145: -1 | AD145: -1 | AE145: 273 | AF145: 437 | AG145: -1 | AH145: -1 | AI145: -1 | AJ145: -1
D146: 136 | E146: 123 | F146: 133 | G146: 23700 | H146: 0 | AC146: -1 | AD146: -1 | AE146: 123 | AF146: 133 | AG146: -1 | AH146: -1 | AI146: -1 | AJ146: -1
D147: 137 | E147: 976 | F147: 803 | G147: 3600 | H147: 0 | AC147: -1 | AD147: -1 | AE147: -1 | AF147: -1 | AG147: 976 | AH147: 803 | AI147: -1 | AJ147: -1
D148: 138 | E148: 691 | F148: 182 | G148: 20500 | H148: 1 | K148: 863000 | AC148: 691 | AD148: 182 | AE148: -1 | AF148: -1 | AG148: -1 | AH148: -1 | AI148: 691 | AJ148: 182
D149: 139 | E149: 291 | F149: 699 | G149: 2900 | H149: 0 | AC149: -1 | AD149: -1 | AE149: 291 | AF149: 699 | AG149: -1 | AH149: -1 | AI149: -1 | AJ149: -1
D150: 140 | E150: 218 | F150: 857 | G150: 21900 | H150: 0 | AC150: -1 | AD150: -1 | AE150: 218 | AF150: 857 | AG150: -1 | AH150: -1 | AI150: -1 | AJ150: -1
D151: 141 | E151: 482 | F151: 18 | G151: 36200 | H151: 0 | AC151: -1 | AD151: -1 | AE151: -1 | AF151: -1 | AG151: -1 | AH151: -1 | AI151: 482 | AJ151: 18
D152: 142 | E152: 795 | F152: 289 | G152: 2900 | H152: 0 | AC152: -1 | AD152: -1 | AE152: -1 | AF152: -1 | AG152: -1 | AH152: -1 | AI152: 795 | AJ152: 289
D153: 143 | E153: 495 | F153: 450 | G153: 3500 | H153: 0 | AC153: -1 | AD153: -1 | AE153: -1 | AF153: -1 | AG153: -1 | AH153: -1 | AI153: 495 | AJ153: 450
D154: 144 | E154: 288 | F154: 935 | G154: 33200 | H154: 0 | AC154: -1 | AD154: -1 | AE154: 288 | AF154: 935 | AG154: -1 | AH154: -1 | AI154: -1 | AJ154: -1
D155: 145 | E155: 531 | F155: 965 | G155: 17800 | H155: 0 | AC155: -1 | AD155: -1 | AE155: -1 | AF155: -1 | AG155: 531 | AH155: 965 | AI155: -1 | AJ155: -1
D156: 146 | E156: 11 | F156: 181 | G156: 39100 | H156: 0 | AC156: -1 | AD156: -1 | AE156: 11 | AF156: 181 | AG156: -1 | AH156: -1 | AI156: -1 | AJ156: -1
D157: 147 | E157: 388 | F157: 902 | G157: 7400 | H157: 0 | AC157: -1 | AD157: -1 | AE157: -1 | AF157: -1 | AG157: 388 | AH157: 902 | AI157: -1 | AJ157: -1
D158: 148 | E158: 714 | F158: 311 | G158: 2400 | H158: 0 | AC158: -1 | AD158: -1 | AE158: -1 | AF158: -1 | AG158: -1 | AH158: -1 | AI158: 714 | AJ158: 311
D159: 149 | E159: 926 | F159: 719 | G159: 9900 | H159: 0 | AC159: -1 | AD159: -1 | AE159: -1 | AF159: -1 | AG159: 926 | AH159: 719 | AI159: -1 | AJ159: -1
D160: 150 | E160: 999 | F160: 352 | G160: 24800 | H160: 0 | AC160: -1 | AD160: -1 | AE160: -1 | AF160: -1 | AG160: -1 | AH160: -1 | AI160: 999 | AJ160: 352
D161: 151 | E161: 781 | F161: 234 | G161: 600 | H161: 0 | AC161: -1 | AD161: -1 | AE161: -1 | AF161: -1 | AG161: -1 | AH161: -1 | AI161: 781 | AJ161: 234
D162: 152 | E162: 765 | F162: 35 | G162: 22600 | H162: 0 | AC162: -1 | AD162: -1 | AE162: -1 | AF162: -1 | AG162: -1 | AH162: -1 | AI162: 765 | AJ162: 35
D163: 153 | E163: 413 | F163: 988 | G163: 10300 | H163: 0 | AC163: -1 | AD163: -1 | AE163: -1 | AF163: -1 | AG163: 413 | AH163: 988 | AI163: -1 | AJ163: -1
D164: 154 | E164: 232 | F164: 484 | G164: 2600 | H164: 0 | AC164: -1 | AD164: -1 | AE164: 232 | AF164: 484 | AG164: -1 | AH164: -1 | AI164: -1 | AJ164: -1
D165: 155 | E165: 717 | F165: 462 | G165: 4500 | H165: 0 | AC165: -1 | AD165: -1 | AE165: -1 | AF165: -1 | AG165: -1 | AH165: -1 | AI165: 717 | AJ165: 462
D166: 156 | E166: 907 | F166: 388 | G166: 11800 | H166: 0 | AC166: -1 | AD166: -1 | AE166: -1 | AF166: -1 | AG166: -1 | AH166: -1 | AI166: 907 | AJ166: 388
D167: 157 | E167: 421 | F167: 790 | G167: 3000 | H167: 0 | AC167: -1 | AD167: -1 | AE167: -1 | AF167: -1 | AG167: 421 | AH167: 790 | AI167: -1 | AJ167: -1
D168: 158 | E168: 954 | F168: 695 | G168: 24000 | H168: 0 | AC168: -1 | AD168: -1 | AE168: -1 | AF168: -1 | AG168: 954 | AH168: 695 | AI168: -1 | AJ168: -1
D169: 159 | E169: 523 | F169: 392 | G169: 1600 | H169: 0 | AC169: -1 | AD169: -1 | AE169: -1 | AF169: -1 | AG169: -1 | AH169: -1 | AI169: 523 | AJ169: 392
D170: 160 | E170: 283 | F170: 129 | G170: 25100 | H170: 0 | AC170: -1 | AD170: -1 | AE170: -1 | AF170: -1 | AG170: -1 | AH170: -1 | AI170: 283 | AJ170: 129
D171: 161 | E171: 968 | F171: 4 | G171: 11000 | H171: 0 | AC171: =IF($H171=0,-1,E171) -> -1 | AD171: =IF($H171=0,-1,F171) -> -1 | AE171: -1 | AF171: -1 | AG171: -1 | AH171: -1 | AI171: 968 | AJ171: 4
D172: 162 | E172: 469 | F172: 752 | G172: 3900 | H172: 0 | AC172: -1 | AD172: -1 | AE172: -1 | AF172: -1 | AG172: 469 | AH172: 752 | AI172: -1 | AJ172: -1
D173: 163 | E173: 448 | F173: 581 | G173: 2600 | H173: 0 | AC173: -1 | AD173: -1 | AE173: -1 | AF173: -1 | AG173: 448 | AH173: 581 | AI173: -1 | AJ173: -1
D174: 164 | E174: 227 | F174: 416 | G174: 1300 | H174: 0 | AC174: -1 | AD174: -1 | AE174: 227 | AF174: 416 | AG174: -1 | AH174: -1 | AI174: -1 | AJ174: -1
D175: 165 | E175: 934 | F175: 46 | G175: 23000 | H175: 0 | AC175: -1 | AD175: -1 | AE175: -1 | AF175: -1 | AG175: -1 | AH175: -1 | AI175: 934 | AJ175: 46
D176: 166 | E176: 725 | F176: 330 | G176: 1100 | H176: 0 | AC176: -1 | AD176: -1 | AE176: -1 | AF176: -1 | AG176: -1 | AH176: -1 | AI176: 725 | AJ176: 330
D177: 167 | E177: 807 | F177: 223 | G177: 33800 | H177: 0 | AC177: -1 | AD177: -1 | AE177: -1 | AF177: -1 | AG177: -1 | AH177: -1 | AI177: 807 | AJ177: 223
D178: 168 | E178: 198 | F178: 830 | G178: 7100 | H178: 0 | AC178: -1 | AD178: -1 | AE178: 198 | AF178: 830 | AG178: -1 | AH178: -1 | AI178: -1 | AJ178: -1
D179: 169 | E179: 299 | F179: 130 | G179: 15300 | H179: 0 | AC179: -1 | AD179: -1 | AE179: -1 | AF179: -1 | AG179: -1 | AH179: -1 | AI179: 299 | AJ179: 130
D180: 170 | E180: 963 | F180: 430 | G180: 15200 | H180: 0 | AC180: -1 | AD180: -1 | AE180: -1 | AF180: -1 | AG180: -1 | AH180: -1 | AI180: 963 | AJ180: 430
D181: 171 | E181: 909 | F181: 83 | G181: 11300 | H181: 0 | AC181: -1 | AD181: -1 | AE181: -1 | AF181: -1 | AG181: -1 | AH181: -1 | AI181: 909 | AJ181: 83
D182: 172 | E182: 627 | F182: 7 | G182: 15200 | H182: 0 | AC182: -1 | AD182: -1 | AE182: -1 | AF182: -1 | AG182: -1 | AH182: -1 | AI182: 627 | AJ182: 7
D183: 173 | E183: 609 | F183: 733 | G183: 900 | H183: 0 | AC183: -1 | AD183: -1 | AE183: -1 | AF183: -1 | AG183: 609 | AH183: 733 | AI183: -1 | AJ183: -1
D184: 174 | E184: 86 | F184: 454 | G184: 12600 | H184: 0 | AC184: -1 | AD184: -1 | AE184: 86 | AF184: 454 | AG184: -1 | AH184: -1 | AI184: -1 | AJ184: -1
D185: 175 | E185: 209 | F185: 60 | G185: 21000 | H185: 0 | AC185: -1 | AD185: -1 | AE185: -1 | AF185: -1 | AG185: -1 | AH185: -1 | AI185: 209 | AJ185: 60
D186: 176 | E186: 1 | F186: 691 | G186: 10000 | H186: 0 | AC186: -1 | AD186: -1 | AE186: 1 | AF186: 691 | AG186: -1 | AH186: -1 | AI186: -1 | AJ186: -1
D187: 177 | E187: 840 | F187: 532 | G187: 34200 | H187: 0 | AC187: -1 | AD187: -1 | AE187: -1 | AF187: -1 | AG187: 840 | AH187: 532 | AI187: -1 | AJ187: -1
D188: 178 | E188: 37 | F188: 654 | G188: 23100 | H188: 0 | AC188: -1 | AD188: -1 | AE188: 37 | AF188: 654 | AG188: -1 | AH188: -1 | AI188: -1 | AJ188: -1
D189: 179 | E189: 423 | F189: 754 | G189: 4200 | H189: 0 | AC189: -1 | AD189: -1 | AE189: -1 | AF189: -1 | AG189: 423 | AH189: 754 | AI189: -1 | AJ189: -1
D190: 180 | E190: 775 | F190: 441 | G190: 1000 | H190: 0 | AC190: -1 | AD190: -1 | AE190: -1 | AF190: -1 | AG190: -1 | AH190: -1 | AI190: 775 | AJ190: 441
D191: 181 | E191: 282 | F191: 366 | G191: 2800 | H191: 0 | AC191: -1 | AD191: -1 | AE191: 282 | AF191: 366 | AG191: -1 | AH191: -1 | AI191: -1 | AJ191: -1
D192: 182 | E192: 6 | F192: 837 | G192: 5200 | H192: 0 | AC192: -1 | AD192: -1 | AE192: 6 | AF192: 837 | AG192: -1 | AH192: -1 | AI192: -1 | AJ192: -1
D193: 183 | E193: 725 | F193: 32 | G193: 3900 | H193: 0 | AC193: -1 | AD193: -1 | AE193: -1 | AF193: -1 | AG193: -1 | AH193: -1 | AI193: 725 | AJ193: 32
D194: 184 | E194: 346 | F194: 460 | G194: 900 | H194: 0 | AC194: -1 | AD194: -1 | AE194: 346 | AF194: 460 | AG194: -1 | AH194: -1 | AI194: -1 | AJ194: -1
D195: 185 | E195: 842 | F195: 622 | G195: 28700 | H195: 0 | AC195: -1 | AD195: -1 | AE195: -1 | AF195: -1 | AG195: 842 | AH195: 622 | AI195: -1 | AJ195: -1
D196: 186 | E196: 75 | F196: 588 | G196: 4800 | H196: 0 | AC196: -1 | AD196: -1 | AE196: 75 | AF196: 588 | AG196: -1 | AH196: -1 | AI196: -1 | AJ196: -1
D197: 187 | E197: 49 | F197: 718 | G197: 24700 | H197: 0 | AC197: -1 | AD197: -1 | AE197: 49 | AF197: 718 | AG197: -1 | AH197: -1 | AI197: -1 | AJ197: -1
D198: 188 | E198: 221 | F198: 668 | G198: 500 | H198: 0 | AC198: -1 | AD198: -1 | AE198: 221 | AF198: 668 | AG198: -1 | AH198: -1 | AI198: -1 | AJ198: -1
D199: 189 | E199: 742 | F199: 28 | G199: 25200 | H199: 0 | AC199: -1 | AD199: -1 | AE199: -1 | AF199: -1 | AG199: -1 | AH199: -1 | AI199: 742 | AJ199: 28
D200: 190 | E200: 202 | F200: 912 | G200: 23700 | H200: 0 | AC200: -1 | AD200: -1 | AE200: 202 | AF200: 912 | AG200: -1 | AH200: -1 | AI200: -1 | AJ200: -1
D201: 191 | E201: 470 | F201: 966 | G201: 2400 | H201: 0 | AC201: -1 | AD201: -1 | AE201: -1 | AF201: -1 | AG201: 470 | AH201: 966 | AI201: -1 | AJ201: -1
D202: 192 | E202: 629 | F202: 220 | G202: 2800 | H202: 0 | AC202: -1 | AD202: -1 | AE202: -1 | AF202: -1 | AG202: -1 | AH202: -1 | AI202: 629 | AJ202: 220
D203: 193 | E203: 991 | F203: 707 | G203: 7100 | H203: 0 | AC203: =IF($H203=0,-1,E203) -> -1 | AD203: =IF($H203=0,-1,F203) -> -1 | AE203: -1 | AF203: -1 | AG203: 991 | AH203: 707 | AI203: -1 | AJ203: -1
D204: 194 | E204: 368 | F204: 430 | G204: 1200 | H204: 0 | AC204: -1 | AD204: -1 | AE204: 368 | AF204: 430 | AG204: -1 | AH204: -1 | AI204: -1 | AJ204: -1
D205: 195 | E205: 230 | F205: 823 | G205: 30000 | H205: 0 | AC205: -1 | AD205: -1 | AE205: 230 | AF205: 823 | AG205: -1 | AH205: -1 | AI205: -1 | AJ205: -1
D206: 196 | E206: 513 | F206: 447 | G206: 2800 | H206: 0 | AC206: -1 | AD206: -1 | AE206: -1 | AF206: -1 | AG206: -1 | AH206: -1 | AI206: 513 | AJ206: 447
D207: 197 | E207: 748 | F207: 611 | G207: 1300 | H207: 0 | AC207: -1 | AD207: -1 | AE207: -1 | AF207: -1 | AG207: 748 | AH207: 611 | AI207: -1 | AJ207: -1
D208: 198 | E208: 574 | F208: 806 | G208: 24300 | H208: 0 | AC208: -1 | AD208: -1 | AE208: -1 | AF208: -1 | AG208: 574 | AH208: 806 | AI208: -1 | AJ208: -1
D209: 199 | E209: 307 | F209: 634 | G209: 4100 | H209: 0 | AC209: -1 | AD209: -1 | AE209: 307 | AF209: 634 | AG209: -1 | AH209: -1 | AI209: -1 | AJ209: -1
... 346 more rows

Sheet Different Data Sets
E5: Random | I5: Relatively Even Demand | M5: Original- More Exetreme Demand Random | Q5: More Exetreme Demand Random
D6: Locations | E6: X | F6: Y | G6: Demand | I6: X | J6: Y | K6: Demand | M6: X | N6: Y | O6: Demand | Q6: X | R6: Y | S6: Demand
D7: 1 | E7: =ROUND(1000*RAND(),0) -> 984 | F7: =ROUND(1000*RAND(),0) -> 16 | G7: =ROUND(1000+10000*RAND(),-2) -> 3100 | I7: 708 | J7: 331 | K7: 8600 | M7: 708 | N7: 331 | O7: =ROUND(IF(OR(M7<200,M7>800,N7<200,N7>800),K7*(2+2*RAND()),K7*(0.2+0.3*RAND())),-2) -> 1900 | Q7: 708 | R7: 331 | S7: 3900
D8: 2 | E8: =ROUND(1000*RAND(),0) -> 930 | F8: 115 | G8: =ROUND(1000+10000*RAND(),-2) -> 9100 | I8: 54 | J8: 992 | K8: 8700 | M8: 54 | N8: 992 | O8: =ROUND(IF(OR(M8<200,M8>800,N8<200,N8>800),K8*(2+2*RAND()),K8*(0.2+0.3*RAND())),-2) -> 32700 | Q8: 54 | R8: 992 | S8: 25200
D9: 3 | E9: 58 | F9: 351 | G9: 4200 | I9: 628 | J9: 840 | K9: 6100 | M9: 628 | N9: 840 | O9: 16000 | Q9: 628 | R9: 840 | S9: 24200
D10: 4 | E10: 524 | F10: 607 | G10: 7700 | I10: 817 | J10: 715 | K10: 5500 | M10: 817 | N10: 715 | O10: 18500 | Q10: 817 | R10: 715 | S10: 15300
D11: 5 | E11: 391 | F11: 192 | G11: 3700 | I11: 664 | J11: 502 | K11: 10300 | M11: 664 | N11: 502 | O11: 4600 | Q11: 664 | R11: 502 | S11: 5100
D12: 6 | E12: 336 | F12: 815 | G12: 6200 | I12: 20 | J12: 909 | K12: 7700 | M12: 20 | N12: 909 | O12: 20000 | Q12: 20 | R12: 909 | S12: 26700
D13: 7 | E13: 786 | F13: 831 | G13: 7100 | I13: 300 | J13: 684 | K13: 9300 | M13: 300 | N13: 684 | O13: 4600 | Q13: 300 | R13: 684 | S13: 2500
D14: 8 | E14: 230 | F14: 833 | G14: 10000 | I14: 732 | J14: 568 | K14: 9300 | M14: 732 | N14: 568 | O14: 2900 | Q14: 732 | R14: 568 | S14: 3200
D15: 9 | E15: 714 | F15: 283 | G15: 7600 | I15: 498 | J15: 715 | K15: 4800 | M15: 498 | N15: 715 | O15: 2100 | Q15: 498 | R15: 715 | S15: 1100
D16: 10 | E16: 57 | F16: 357 | G16: 1200 | I16: 246 | J16: 275 | K16: 7300 | M16: 246 | N16: 275 | O16: 1900 | Q16: 246 | R16: 275 | S16: 2300
D17: 11 | E17: 366 | F17: 863 | G17: 10100 | I17: 890 | J17: 890 | K17: 6400 | M17: 890 | N17: 890 | O17: 24600 | Q17: 890 | R17: 890 | S17: 17700
D18: 12 | E18: 188 | F18: 725 | G18: 6900 | I18: 18 | J18: 219 | K18: 1200 | M18: 18 | N18: 219 | O18: 2900 | Q18: 18 | R18: 219 | S18: 2800
D19: 13 | E19: 219 | F19: 269 | G19: 4900 | I19: 114 | J19: 822 | K19: 2300 | M19: 114 | N19: 822 | O19: 4800 | Q19: 114 | R19: 822 | S19: 5700
D20: 14 | E20: 941 | F20: 772 | G20: 5900 | I20: 679 | J20: 329 | K20: 1700 | M20: 679 | N20: 329 | O20: 700 | Q20: 679 | R20: 329 | S20: 400
D21: 15 | E21: 466 | F21: 879 | G21: 8500 | I21: 211 | J21: 126 | K21: 2300 | M21: 211 | N21: 126 | O21: 4700 | Q21: 211 | R21: 126 | S21: 7800
D22: 16 | E22: 151 | F22: 920 | G22: 7400 | I22: 521 | J22: 260 | K22: 1800 | M22: 521 | N22: 260 | O22: 700 | Q22: 521 | R22: 260 | S22: 400
D23: 17 | E23: 483 | F23: 517 | G23: 2100 | I23: 210 | J23: 996 | K23: 10900 | M23: 210 | N23: 996 | O23: 35300 | Q23: 210 | R23: 996 | S23: 32100
D24: 18 | E24: 157 | F24: 42 | G24: 7700 | I24: 806 | J24: 282 | K24: 3500 | M24: 806 | N24: 282 | O24: 9000 | Q24: 806 | R24: 282 | S24: 13400
D25: 19 | E25: 969 | F25: 871 | G25: 8200 | I25: 500 | J25: 370 | K25: 9600 | M25: 500 | N25: 370 | O25: 3500 | Q25: 500 | R25: 370 | S25: 4400
D26: 20 | E26: 688 | F26: 277 | G26: 4300 | I26: 256 | J26: 484 | K26: 4700 | M26: 256 | N26: 484 | O26: 1700 | Q26: 256 | R26: 484 | S26: 1700
D27: 21 | E27: 135 | F27: 580 | G27: 6100 | I27: 159 | J27: 517 | K27: 8300 | M27: 159 | N27: 517 | O27: 18700 | Q27: 159 | R27: 517 | S27: 29300
D28: 22 | E28: 153 | F28: 280 | G28: 3800 | I28: 210 | J28: 210 | K28: 1900 | M28: 210 | N28: 210 | O28: 600 | Q28: 210 | R28: 210 | S28: 500
D29: 23 | E29: 574 | F29: 193 | G29: 3700 | I29: 714 | J29: 257 | K29: 10400 | M29: 714 | N29: 257 | O29: 3600 | Q29: 714 | R29: 257 | S29: 4000
D30: 24 | E30: 785 | F30: 536 | G30: 6500 | I30: 971 | J30: 399 | K30: 1500 | M30: 971 | N30: 399 | O30: 4600 | Q30: 971 | R30: 399 | S30: 3300
D31: 25 | E31: 933 | F31: 698 | G31: 7200 | I31: 287 | J31: 850 | K31: 6500 | M31: 287 | N31: 850 | O31: 20700 | Q31: 287 | R31: 850 | S31: 23400
D32: 26 | E32: 677 | F32: 611 | G32: 4200 | I32: 759 | J32: 503 | K32: 5400 | M32: 759 | N32: 503 | O32: 1600 | Q32: 759 | R32: 503 | S32: 2600
D33: 27 | E33: 151 | F33: 160 | G33: 6300 | I33: 689 | J33: 961 | K33: 5100 | M33: 689 | N33: 961 | O33: 12100 | Q33: 689 | R33: 961 | S33: 17400
D34: 28 | E34: 224 | F34: 360 | G34: 6600 | I34: 240 | J34: 247 | K34: 9600 | M34: 240 | N34: 247 | O34: 3800 | Q34: 240 | R34: 247 | S34: 3000
D35: 29 | E35: 381 | F35: 296 | G35: 4700 | I35: 22 | J35: 586 | K35: 4700 | M35: 22 | N35: 586 | O35: 10900 | Q35: 22 | R35: 586 | S35: 18000
D36: 30 | E36: 721 | F36: 606 | G36: 5600 | I36: 997 | J36: 673 | K36: 4100 | M36: 997 | N36: 673 | O36: 14300 | Q36: 997 | R36: 673 | S36: 13400
D37: 31 | E37: 978 | F37: 784 | G37: 7300 | I37: 811 | J37: 389 | K37: 10800 | M37: 811 | N37: 389 | O37: 22200 | Q37: 811 | R37: 389 | S37: 37900
D38: 32 | E38: 697 | F38: 557 | G38: 9800 | I38: 458 | J38: 850 | K38: 6100 | M38: 458 | N38: 850 | O38: 18900 | Q38: 458 | R38: 850 | S38: 18400
D39: 33 | E39: 117 | F39: 522 | G39: 9400 | I39: 681 | J39: 492 | K39: 8400 | M39: 681 | N39: 492 | O39: 3500 | Q39: 681 | R39: 492 | S39: 2100
D40: 34 | E40: =ROUND(1000*RAND(),0) -> 565 | F40: 932 | G40: 3700 | I40: 658 | J40: 984 | K40: 6200 | M40: 658 | N40: 984 | O40: 12600 | Q40: 658 | R40: 984 | S40: 13500
D41: 35 | E41: 627 | F41: 950 | G41: 1200 | I41: 371 | J41: 989 | K41: 4100 | M41: 371 | N41: 989 | O41: 10800 | Q41: 371 | R41: 989 | S41: 12000
D42: 36 | E42: 357 | F42: 230 | G42: 5300 | I42: 346 | J42: 189 | K42: 7400 | M42: 346 | N42: 189 | O42: 16300 | Q42: 346 | R42: 189 | S42: 23800
D43: 37 | E43: 125 | F43: 718 | G43: 5000 | I43: 409 | J43: 574 | K43: 4900 | M43: 409 | N43: 574 | O43: 2000 | Q43: 409 | R43: 574 | S43: 1700
D44: 38 | E44: 372 | F44: 698 | G44: 7400 | I44: 403 | J44: 367 | K44: 9000 | M44: 403 | N44: 367 | O44: 3500 | Q44: 403 | R44: 367 | S44: 3600
D45: 39 | E45: 522 | F45: 903 | G45: 8000 | I45: 515 | J45: 153 | K45: 2100 | M45: 515 | N45: 153 | O45: 5700 | Q45: 515 | R45: 153 | S45: 4600
D46: 40 | E46: 211 | F46: 20 | G46: 8500 | I46: 994 | J46: 47 | K46: 5900 | M46: 994 | N46: 47 | O46: 17000 | Q46: 994 | R46: 47 | S46: 21600
D47: 41 | E47: 140 | F47: 850 | G47: 10900 | I47: 154 | J47: 719 | K47: 2800 | M47: 154 | N47: 719 | O47: 10200 | Q47: 154 | R47: 719 | S47: 10500
D48: 42 | E48: 875 | F48: 96 | G48: 11000 | I48: 438 | J48: 541 | K48: 7800 | M48: 438 | N48: 541 | O48: 1600 | Q48: 438 | R48: 541 | S48: 3300
D49: 43 | E49: 284 | F49: 199 | G49: 5800 | I49: 519 | J49: 515 | K49: 8000 | M49: 519 | N49: 515 | O49: 2900 | Q49: 519 | R49: 515 | S49: 2400
D50: 44 | E50: 557 | F50: 729 | G50: 1400 | I50: 148 | J50: 409 | K50: 6500 | M50: 148 | N50: 409 | O50: 13000 | Q50: 148 | R50: 409 | S50: 16700
D51: 45 | E51: 45 | F51: 453 | G51: 6900 | I51: 874 | J51: 199 | K51: 9000 | M51: 874 | N51: 199 | O51: 29000 | Q51: 874 | R51: 199 | S51: 34600
D52: 46 | E52: 599 | F52: 352 | G52: 5900 | I52: 70 | J52: 610 | K52: 10800 | M52: 70 | N52: 610 | O52: 37000 | Q52: 70 | R52: 610 | S52: 36400
D53: 47 | E53: 384 | F53: 310 | G53: 3200 | I53: 530 | J53: 466 | K53: 1500 | M53: 530 | N53: 466 | O53: 400 | Q53: 530 | R53: 466 | S53: 700
D54: 48 | E54: 402 | F54: 178 | G54: 2100 | I54: 641 | J54: 142 | K54: 7500 | M54: 641 | N54: 142 | O54: 18600 | Q54: 641 | R54: 142 | S54: 27700
D55: 49 | E55: 904 | F55: 328 | G55: 4700 | I55: 515 | J55: 940 | K55: 5500 | M55: 515 | N55: 940 | O55: 14100 | Q55: 515 | R55: 940 | S55: 12000
D56: 50 | E56: 624 | F56: 622 | G56: 8200 | I56: 500 | J56: 517 | K56: 10700 | M56: 500 | N56: 517 | O56: 5300 | Q56: 500 | R56: 517 | S56: 4400
D57: 51 | E57: 467 | F57: 320 | G57: 2700 | I57: 913 | J57: 458 | K57: 6800 | M57: 913 | N57: 458 | O57: 24100 | Q57: 913 | R57: 458 | S57: 25700
D58: 52 | E58: 917 | F58: 79 | G58: 4600 | I58: 32 | J58: 724 | K58: 1200 | M58: 32 | N58: 724 | O58: 4300 | Q58: 32 | R58: 724 | S58: 3100
D59: 53 | E59: 853 | F59: 595 | G59: 6500 | I59: 701 | J59: 526 | K59: 9000 | M59: 701 | N59: 526 | O59: 3400 | Q59: 701 | R59: 526 | S59: 3200
D60: 54 | E60: 807 | F60: 805 | G60: 6100 | I60: 770 | J60: 945 | K60: 5300 | M60: 770 | N60: 945 | O60: 19300 | Q60: 770 | R60: 945 | S60: 13500
D61: 55 | E61: 925 | F61: 308 | G61: 9600 | I61: 930 | J61: 273 | K61: 4000 | M61: 930 | N61: 273 | O61: 13500 | Q61: 930 | R61: 273 | S61: 12700
D62: 56 | E62: 977 | F62: 554 | G62: 3800 | I62: 736 | J62: 137 | K62: 1700 | M62: 736 | N62: 137 | O62: 4700 | Q62: 736 | R62: 137 | S62: 4500
D63: 57 | E63: 987 | F63: 991 | G63: 6500 | I63: 701 | J63: 534 | K63: 8800 | M63: 701 | N63: 534 | O63: 2000 | Q63: 701 | R63: 534 | S63: 2900
D64: 58 | E64: 344 | F64: 320 | G64: 9200 | I64: 471 | J64: 704 | K64: 2600 | M64: 471 | N64: 704 | O64: 900 | Q64: 471 | R64: 704 | S64: 700
D65: 59 | E65: 544 | F65: 145 | G65: 2500 | I65: 646 | J65: 863 | K65: 3600 | M65: 646 | N65: 863 | O65: 8800 | Q65: 646 | R65: 863 | S65: 11000
D66: 60 | E66: 980 | F66: 894 | G66: 6100 | I66: 122 | J66: 28 | K66: 2600 | M66: 122 | N66: 28 | O66: 7000 | Q66: 122 | R66: 28 | S66: 10100
D67: 61 | E67: 50 | F67: 976 | G67: 2300 | I67: 556 | J67: 969 | K67: 9400 | M67: 556 | N67: 969 | O67: 24900 | Q67: 556 | R67: 969 | S67: 35400
D68: 62 | E68: 411 | F68: 89 | G68: 6900 | I68: 812 | J68: 293 | K68: 9400 | M68: 812 | N68: 293 | O68: 20100 | Q68: 812 | R68: 293 | S68: 20700
D69: 63 | E69: 408 | F69: 763 | G69: 9900 | I69: 490 | J69: 8 | K69: 8700 | M69: 490 | N69: 8 | O69: 24800 | Q69: 490 | R69: 8 | S69: 27700
D70: 64 | E70: 54 | F70: 676 | G70: 7100 | I70: 393 | J70: 895 | K70: 8400 | M70: 393 | N70: 895 | O70: 27800 | Q70: 393 | R70: 895 | S70: 32800
D71: 65 | E71: 209 | F71: 964 | G71: 10300 | I71: 545 | J71: 399 | K71: 11000 | M71: 545 | N71: 399 | O71: 5500 | Q71: 545 | R71: 399 | S71: 4200
D72: 66 | E72: =ROUND(1000*RAND(),0) -> 919 | F72: 915 | G72: =ROUND(1000+10000*RAND(),-2) -> 8100 | I72: 349 | J72: 502 | K72: 2100 | M72: 349 | N72: 502 | O72: =ROUND(IF(OR(M72<200,M72>800,N72<200,N72>800),K72*(2+2*RAND()),K72*(0.2+0.3*RAND())),-2) -> 500 | Q72: 349 | R72: 502 | S72: 900
D73: 67 | E73: 292 | F73: 71 | G73: 9700 | I73: 798 | J73: 919 | K73: 4900 | M73: 798 | N73: 919 | O73: 12000 | Q73: 798 | R73: 919 | S73: 18500
D74: 68 | E74: 986 | F74: 640 | G74: 9000 | I74: 593 | J74: 684 | K74: 10200 | M74: 593 | N74: 684 | O74: 3400 | Q74: 593 | R74: 684 | S74: 3400
D75: 69 | E75: 308 | F75: 853 | G75: 8200 | I75: 552 | J75: 663 | K75: 6300 | M75: 552 | N75: 663 | O75: 2900 | Q75: 552 | R75: 663 | S75: 2300
D76: 70 | E76: 444 | F76: 181 | G76: 7000 | I76: 801 | J76: 759 | K76: 3700 | M76: 801 | N76: 759 | O76: 14500 | Q76: 801 | R76: 759 | S76: 8500
D77: 71 | E77: 899 | F77: 927 | G77: 10600 | I77: 323 | J77: 499 | K77: 6900 | M77: 323 | N77: 499 | O77: 3300 | Q77: 323 | R77: 499 | S77: 2400
D78: 72 | E78: 201 | F78: 934 | G78: 4400 | I78: 77 | J78: 686 | K78: 7500 | M78: 77 | N78: 686 | O78: 16100 | Q78: 77 | R78: 686 | S78: 27700
D79: 73 | E79: 47 | F79: 84 | G79: 2200 | I79: 221 | J79: 608 | K79: 1100 | M79: 221 | N79: 608 | O79: 300 | Q79: 221 | R79: 608 | S79: 300
D80: 74 | E80: 775 | F80: 651 | G80: 2500 | I80: 282 | J80: 835 | K80: 1100 | M80: 282 | N80: 835 | O80: 4200 | Q80: 282 | R80: 835 | S80: 4200
D81: 75 | E81: 536 | F81: 614 | G81: 9700 | I81: 855 | J81: 998 | K81: 7600 | M81: 855 | N81: 998 | O81: 17400 | Q81: 855 | R81: 998 | S81: 20600
D82: 76 | E82: 23 | F82: 548 | G82: 2100 | I82: 286 | J82: 907 | K82: 2100 | M82: 286 | N82: 907 | O82: 8000 | Q82: 286 | R82: 907 | S82: 4900
D83: 77 | E83: 965 | F83: 262 | G83: 10800 | I83: 825 | J83: 888 | K83: 6200 | M83: 825 | N83: 888 | O83: 14000 | Q83: 825 | R83: 888 | S83: 15700
D84: 78 | E84: 589 | F84: 849 | G84: 8600 | I84: 692 | J84: 857 | K84: 10000 | M84: 692 | N84: 857 | O84: 27200 | Q84: 692 | R84: 857 | S84: 29400
D85: 79 | E85: 376 | F85: 246 | G85: 6600 | I85: 289 | J85: 710 | K85: 1500 | M85: 289 | N85: 710 | O85: 500 | Q85: 289 | R85: 710 | S85: 400
D86: 80 | E86: 25 | F86: 623 | G86: 6000 | I86: 679 | J86: 966 | K86: 1700 | M86: 679 | N86: 966 | O86: 6000 | Q86: 679 | R86: 966 | S86: 5400
D87: 81 | E87: 470 | F87: 224 | G87: 8800 | I87: 586 | J87: 15 | K87: 6900 | M87: 586 | N87: 15 | O87: 22700 | Q87: 586 | R87: 15 | S87: 18700
D88: 82 | E88: 664 | F88: 748 | G88: 5300 | I88: 564 | J88: 671 | K88: 5600 | M88: 564 | N88: 671 | O88: 2300 | Q88: 564 | R88: 671 | S88: 2200
D89: 83 | E89: 281 | F89: 96 | G89: 7900 | I89: 114 | J89: 921 | K89: 10600 | M89: 114 | N89: 921 | O89: 23500 | Q89: 114 | R89: 921 | S89: 24200
D90: 84 | E90: 621 | F90: 140 | G90: 2800 | I90: 20 | J90: 531 | K90: 9900 | M90: 20 | N90: 531 | O90: 36100 | Q90: 20 | R90: 531 | S90: 36300
D91: 85 | E91: 765 | F91: 469 | G91: 9600 | I91: 116 | J91: 401 | K91: 7100 | M91: 116 | N91: 401 | O91: 22000 | Q91: 116 | R91: 401 | S91: 19500
D92: 86 | E92: 903 | F92: 429 | G92: 10300 | I92: 408 | J92: 261 | K92: 6800 | M92: 408 | N92: 261 | O92: 2600 | Q92: 408 | R92: 261 | S92: 1500
D93: 87 | E93: 215 | F93: 772 | G93: 10400 | I93: 504 | J93: 196 | K93: 9100 | M93: 504 | N93: 196 | O93: 25800 | Q93: 504 | R93: 196 | S93: 19800
D94: 88 | E94: 953 | F94: 659 | G94: 8200 | I94: 340 | J94: 227 | K94: 9500 | M94: 340 | N94: 227 | O94: 4500 | Q94: 340 | R94: 227 | S94: 4100
D95: 89 | E95: 275 | F95: 917 | G95: 5500 | I95: 140 | J95: 835 | K95: 2900 | M95: 140 | N95: 835 | O95: 6600 | Q95: 140 | R95: 835 | S95: 8200
D96: 90 | E96: 453 | F96: 268 | G96: 9800 | I96: 800 | J96: 531 | K96: 10300 | M96: 800 | N96: 531 | O96: 2900 | Q96: 800 | R96: 531 | S96: 3100
D97: 91 | E97: 777 | F97: 22 | G97: 1200 | I97: 222 | J97: 218 | K97: 10900 | M97: 222 | N97: 218 | O97: 2600 | Q97: 222 | R97: 218 | S97: 4000
D98: 92 | E98: 119 | F98: 313 | G98: 3300 | I98: 134 | J98: 535 | K98: 8200 | M98: 134 | N98: 535 | O98: 24200 | Q98: 134 | R98: 535 | S98: 28600
D99: 93 | E99: 326 | F99: 983 | G99: 10700 | I99: 864 | J99: 749 | K99: 6100 | M99: 864 | N99: 749 | O99: 22300 | Q99: 864 | R99: 749 | S99: 21700
D100: 94 | E100: 55 | F100: 683 | G100: 3100 | I100: 691 | J100: 974 | K100: 10200 | M100: 691 | N100: 974 | O100: 39500 | Q100: 691 | R100: 974 | S100: 33000
D101: 95 | E101: 173 | F101: 850 | G101: 4700 | I101: 283 | J101: 224 | K101: 5400 | M101: 283 | N101: 224 | O101: 2500 | Q101: 283 | R101: 224 | S101: 2300
D102: 96 | E102: 528 | F102: 605 | G102: 2300 | I102: 262 | J102: 510 | K102: 1900 | M102: 262 | N102: 510 | O102: 500 | Q102: 262 | R102: 510 | S102: 600
D103: 97 | E103: 15 | F103: 903 | G103: 6400 | I103: 294 | J103: 89 | K103: 8200 | M103: 294 | N103: 89 | O103: 32500 | Q103: 294 | R103: 89 | S103: 32700
D104: 98 | E104: =ROUND(1000*RAND(),0) -> 838 | F104: 636 | G104: 7800 | I104: 807 | J104: 59 | K104: 6000 | M104: 807 | N104: 59 | O104: 17500 | Q104: 807 | R104: 59 | S104: 15800
D105: 99 | E105: 570 | F105: 601 | G105: 8200 | I105: 928 | J105: 732 | K105: 4000 | M105: 928 | N105: 732 | O105: 11400 | Q105: 928 | R105: 732 | S105: 15400
D106: 100 | E106: 591 | F106: 252 | G106: 4300 | I106: 869 | J106: 454 | K106: 1000 | M106: 869 | N106: 454 | O106: 4000 | Q106: 869 | R106: 454 | S106: 3700
D107: 101 | E107: 715 | F107: 517 | G107: 9600 | I107: 987 | J107: 980 | K107: 4600 | M107: 987 | N107: 980 | O107: 17100 | Q107: 987 | R107: 980 | S107: 13000
D108: 102 | E108: 483 | F108: 379 | G108: 7500 | I108: 417 | J108: 777 | K108: 3300 | M108: 417 | N108: 777 | O108: 1300 | Q108: 417 | R108: 777 | S108: 1000
D109: 103 | E109: 233 | F109: 728 | G109: 10800 | I109: 651 | J109: 758 | K109: 5200 | M109: 651 | N109: 758 | O109: 1200 | Q109: 651 | R109: 758 | S109: 1200
D110: 104 | E110: 328 | F110: 687 | G110: 7500 | I110: 728 | J110: 546 | K110: 7200 | M110: 728 | N110: 546 | O110: 2800 | Q110: 728 | R110: 546 | S110: 3100
D111: 105 | E111: 516 | F111: 55 | G111: 1800 | I111: 9 | J111: 699 | K111: 1700 | M111: 9 | N111: 699 | O111: 6300 | Q111: 9 | R111: 699 | S111: 4900
D112: 106 | E112: 98 | F112: 433 | G112: 4800 | I112: 622 | J112: 205 | K112: 3500 | M112: 622 | N112: 205 | O112: 1700 | Q112: 622 | R112: 205 | S112: 800
D113: 107 | E113: 881 | F113: 714 | G113: 10400 | I113: 765 | J113: 104 | K113: 5800 | M113: 765 | N113: 104 | O113: 20700 | Q113: 765 | R113: 104 | S113: 16200
D114: 108 | E114: 264 | F114: 660 | G114: 2400 | I114: 57 | J114: 648 | K114: 10500 | M114: 57 | N114: 648 | O114: 23500 | Q114: 57 | R114: 648 | S114: 30100
D115: 109 | E115: 916 | F115: 754 | G115: 4400 | I115: 137 | J115: 396 | K115: 6000 | M115: 137 | N115: 396 | O115: 12400 | Q115: 137 | R115: 396 | S115: 16600
D116: 110 | E116: 950 | F116: 732 | G116: 7800 | I116: 781 | J116: 167 | K116: 6200 | M116: 781 | N116: 167 | O116: 12700 | Q116: 781 | R116: 167 | S116: 22200
D117: 111 | E117: 685 | F117: 741 | G117: 9900 | I117: 387 | J117: 426 | K117: 2300 | M117: 387 | N117: 426 | O117: 1000 | Q117: 387 | R117: 426 | S117: 700
D118: 112 | E118: 71 | F118: 514 | G118: 2100 | I118: 592 | J118: 475 | K118: 9100 | M118: 592 | N118: 475 | O118: 2100 | Q118: 592 | R118: 475 | S118: 4000
D119: 113 | E119: 907 | F119: 889 | G119: 4900 | I119: 131 | J119: 833 | K119: 4600 | M119: 131 | N119: 833 | O119: 13900 | Q119: 131 | R119: 833 | S119: 13800
D120: 114 | E120: 288 | F120: 989 | G120: 9700 | I120: 208 | J120: 440 | K120: 1100 | M120: 208 | N120: 440 | O120: 300 | Q120: 208 | R120: 440 | S120: 300
D121: 115 | E121: 66 | F121: 969 | G121: 1800 | I121: 198 | J121: 277 | K121: 11000 | M121: 198 | N121: 277 | O121: 27900 | Q121: 198 | R121: 277 | S121: 27100
D122: 116 | E122: 756 | F122: 487 | G122: 3800 | I122: 972 | J122: 687 | K122: 8700 | M122: 972 | N122: 687 | O122: 18800 | Q122: 972 | R122: 687 | S122: 25000
D123: 117 | E123: 926 | F123: 478 | G123: 4500 | I123: 909 | J123: 448 | K123: 4300 | M123: 909 | N123: 448 | O123: 16600 | Q123: 909 | R123: 448 | S123: 11300
D124: 118 | E124: 228 | F124: 58 | G124: 2800 | I124: 64 | J124: 45 | K124: 4000 | M124: 64 | N124: 45 | O124: 15000 | Q124: 64 | R124: 45 | S124: 12200
D125: 119 | E125: 782 | F125: 727 | G125: 5100 | I125: 332 | J125: 808 | K125: 10800 | M125: 332 | N125: 808 | O125: 39400 | Q125: 332 | R125: 808 | S125: 30900
D126: 120 | E126: 283 | F126: 146 | G126: 3800 | I126: 148 | J126: 853 | K126: 1200 | M126: 148 | N126: 853 | O126: 2700 | Q126: 148 | R126: 853 | S126: 3100
D127: 121 | E127: 302 | F127: 773 | G127: 4700 | I127: 321 | J127: 381 | K127: 2200 | M127: 321 | N127: 381 | O127: 800 | Q127: 321 | R127: 381 | S127: 600
D128: 122 | E128: 261 | F128: 367 | G128: 5500 | I128: 986 | J128: 703 | K128: 8800 | M128: 986 | N128: 703 | O128: 21900 | Q128: 986 | R128: 703 | S128: 27800
D129: 123 | E129: 814 | F129: 438 | G129: 5000 | I129: 275 | J129: 135 | K129: 4200 | M129: 275 | N129: 135 | O129: 8900 | Q129: 275 | R129: 135 | S129: 10100
D130: 124 | E130: 226 | F130: 971 | G130: 8300 | I130: 218 | J130: 945 | K130: 6400 | M130: 218 | N130: 945 | O130: 25100 | Q130: 218 | R130: 945 | S130: 12900
D131: 125 | E131: 383 | F131: 236 | G131: 9500 | I131: 71 | J131: 79 | K131: 1700 | M131: 71 | N131: 79 | O131: 6300 | Q131: 71 | R131: 79 | S131: 5900
D132: 126 | E132: 241 | F132: 563 | G132: 7700 | I132: 366 | J132: 367 | K132: 4800 | M132: 366 | N132: 367 | O132: 1200 | Q132: 366 | R132: 367 | S132: 1600
D133: 127 | E133: 989 | F133: 666 | G133: 3500 | I133: 57 | J133: 712 | K133: 4600 | M133: 57 | N133: 712 | O133: 12400 | Q133: 57 | R133: 712 | S133: 17200
D134: 128 | E134: 718 | F134: 441 | G134: 5100 | I134: 365 | J134: 654 | K134: 5100 | M134: 365 | N134: 654 | O134: 1100 | Q134: 365 | R134: 654 | S134: 1700
D135: 129 | E135: 451 | F135: 451 | G135: 10300 | I135: 161 | J135: 548 | K135: 4500 | M135: 161 | N135: 548 | O135: 17500 | Q135: 161 | R135: 548 | S135: 13100
D136: 130 | E136: =ROUND(1000*RAND(),0) -> 271 | F136: 792 | G136: =ROUND(1000+10000*RAND(),-2) -> 3900 | I136: 165 | J136: 49 | K136: 3700 | M136: 165 | N136: 49 | O136: =ROUND(IF(OR(M136<200,M136>800,N136<200,N136>800),K136*(2+2*RAND()),K136*(0.2+0.3*RAND())),-2) -> 8200 | Q136: 165 | R136: 49 | S136: 10400
D137: 131 | E137: 80 | F137: 401 | G137: 6600 | I137: 115 | J137: 85 | K137: 3300 | M137: 115 | N137: 85 | O137: 10800 | Q137: 115 | R137: 85 | S137: 7500
D138: 132 | E138: 449 | F138: 713 | G138: 3900 | I138: 381 | J138: 253 | K138: 10000 | M138: 381 | N138: 253 | O138: 3300 | Q138: 381 | R138: 253 | S138: 3700
D139: 133 | E139: 435 | F139: 226 | G139: 5100 | I139: 647 | J139: 980 | K139: 8200 | M139: 647 | N139: 980 | O139: 28000 | Q139: 647 | R139: 980 | S139: 26500
D140: 134 | E140: 66 | F140: 130 | G140: 5200 | I140: 406 | J140: 17 | K140: 6900 | M140: 406 | N140: 17 | O140: 14300 | Q140: 406 | R140: 17 | S140: 15000
D141: 135 | E141: 144 | F141: 861 | G141: 8800 | I141: 273 | J141: 437 | K141: 9900 | M141: 273 | N141: 437 | O141: 4700 | Q141: 273 | R141: 437 | S141: 2000
D142: 136 | E142: 428 | F142: 729 | G142: 8900 | I142: 123 | J142: 133 | K142: 9600 | M142: 123 | N142: 133 | O142: 38000 | Q142: 123 | R142: 133 | S142: 23700
D143: 137 | E143: 67 | F143: 977 | G143: 7000 | I143: 976 | J143: 803 | K143: 1500 | M143: 976 | N143: 803 | O143: 5700 | Q143: 976 | R143: 803 | S143: 3600
D144: 138 | E144: 548 | F144: 1 | G144: 6100 | I144: 691 | J144: 182 | K144: 8500 | M144: 691 | N144: 182 | O144: 29300 | Q144: 691 | R144: 182 | S144: 20500
D145: 139 | E145: 140 | F145: 6 | G145: 9000 | I145: 291 | J145: 699 | K145: 9000 | M145: 291 | N145: 699 | O145: 3400 | Q145: 291 | R145: 699 | S145: 2900
D146: 140 | E146: 736 | F146: 436 | G146: 10300 | I146: 218 | J146: 857 | K146: 7100 | M146: 218 | N146: 857 | O146: 26300 | Q146: 218 | R146: 857 | S146: 21900
D147: 141 | E147: 74 | F147: 737 | G147: 7900 | I147: 482 | J147: 18 | K147: 10500 | M147: 482 | N147: 18 | O147: 21400 | Q147: 482 | R147: 18 | S147: 36200
D148: 142 | E148: 688 | F148: 121 | G148: 4100 | I148: 795 | J148: 289 | K148: 6800 | M148: 795 | N148: 289 | O148: 1700 | Q148: 795 | R148: 289 | S148: 2900
D149: 143 | E149: 779 | F149: 945 | G149: 7400 | I149: 495 | J149: 450 | K149: 8500 | M149: 495 | N149: 450 | O149: 3400 | Q149: 495 | R149: 450 | S149: 3500
D150: 144 | E150: 324 | F150: 830 | G150: 2400 | I150: 288 | J150: 935 | K150: 10100 | M150: 288 | N150: 935 | O150: 36700 | Q150: 288 | R150: 935 | S150: 33200
D151: 145 | E151: 791 | F151: 888 | G151: 3300 | I151: 531 | J151: 965 | K151: 7800 | M151: 531 | N151: 965 | O151: 18300 | Q151: 531 | R151: 965 | S151: 17800
D152: 146 | E152: 973 | F152: 281 | G152: 2900 | I152: 11 | J152: 181 | K152: 10200 | M152: 11 | N152: 181 | O152: 33200 | Q152: 11 | R152: 181 | S152: 39100
D153: 147 | E153: 472 | F153: 806 | G153: 6900 | I153: 388 | J153: 902 | K153: 3100 | M153: 388 | N153: 902 | O153: 9000 | Q153: 388 | R153: 902 | S153: 7400
D154: 148 | E154: 743 | F154: 62 | G154: 9600 | I154: 714 | J154: 311 | K154: 6800 | M154: 714 | N154: 311 | O154: 2300 | Q154: 714 | R154: 311 | S154: 2400
D155: 149 | E155: 329 | F155: 576 | G155: 2800 | I155: 926 | J155: 719 | K155: 2700 | M155: 926 | N155: 719 | O155: 8400 | Q155: 926 | R155: 719 | S155: 9900
D156: 150 | E156: 989 | F156: 973 | G156: 5500 | I156: 999 | J156: 352 | K156: 8700 | M156: 999 | N156: 352 | O156: 33600 | Q156: 999 | R156: 352 | S156: 24800
D157: 151 | E157: 176 | F157: 667 | G157: 6600 | I157: 781 | J157: 234 | K157: 2300 | M157: 781 | N157: 234 | O157: 700 | Q157: 781 | R157: 234 | S157: 600
D158: 152 | E158: 864 | F158: 207 | G158: 9300 | I158: 765 | J158: 35 | K158: 9700 | M158: 765 | N158: 35 | O158: 38300 | Q158: 765 | R158: 35 | S158: 22600
D159: 153 | E159: 678 | F159: 621 | G159: 4700 | I159: 413 | J159: 988 | K159: 2600 | M159: 413 | N159: 988 | O159: 9000 | Q159: 413 | R159: 988 | S159: 10300
D160: 154 | E160: 623 | F160: 106 | G160: 4500 | I160: 232 | J160: 484 | K160: 6400 | M160: 232 | N160: 484 | O160: 2600 | Q160: 232 | R160: 484 | S160: 2600
D161: 155 | E161: 740 | F161: 677 | G161: 2500 | I161: 717 | J161: 462 | K161: 11000 | M161: 717 | N161: 462 | O161: 5200 | Q161: 717 | R161: 462 | S161: 4500
D162: 156 | E162: 202 | F162: 930 | G162: 1800 | I162: 907 | J162: 388 | K162: 5800 | M162: 907 | N162: 388 | O162: 17700 | Q162: 907 | R162: 388 | S162: 11800
D163: 157 | E163: 524 | F163: 391 | G163: 4200 | I163: 421 | J163: 790 | K163: 9200 | M163: 421 | N163: 790 | O163: 4300 | Q163: 421 | R163: 790 | S163: 3000
D164: 158 | E164: 15 | F164: 110 | G164: 3700 | I164: 954 | J164: 695 | K164: 10900 | M164: 954 | N164: 695 | O164: 33500 | Q164: 954 | R164: 695 | S164: 24000
D165: 159 | E165: 571 | F165: 985 | G165: 2600 | I165: 523 | J165: 392 | K165: 3400 | M165: 523 | N165: 392 | O165: 800 | Q165: 523 | R165: 392 | S165: 1600
D166: 160 | E166: 636 | F166: 804 | G166: 2100 | I166: 283 | J166: 129 | K166: 7000 | M166: 283 | N166: 129 | O166: 21700 | Q166: 283 | R166: 129 | S166: 25100
D167: 161 | E167: 600 | F167: 957 | G167: 4300 | I167: 968 | J167: 4 | K167: 2900 | M167: 968 | N167: 4 | O167: 8600 | Q167: 968 | R167: 4 | S167: 11000
D168: 162 | E168: =ROUND(1000*RAND(),0) -> 310 | F168: 808 | G168: 10300 | I168: 469 | J168: 752 | K168: 8100 | M168: 469 | N168: 752 | O168: 1900 | Q168: 469 | R168: 752 | S168: 3900
D169: 163 | E169: 285 | F169: 528 | G169: 3300 | I169: 448 | J169: 581 | K169: 6700 | M169: 448 | N169: 581 | O169: 2400 | Q169: 448 | R169: 581 | S169: 2600
D170: 164 | E170: 669 | F170: 847 | G170: 9800 | I170: 227 | J170: 416 | K170: 5800 | M170: 227 | N170: 416 | O170: 2700 | Q170: 227 | R170: 416 | S170: 1300
D171: 165 | E171: 253 | F171: 351 | G171: 6700 | I171: 934 | J171: 46 | K171: 10200 | M171: 934 | N171: 46 | O171: 39600 | Q171: 934 | R171: 46 | S171: 23000
D172: 166 | E172: 532 | F172: 220 | G172: 8700 | I172: 725 | J172: 330 | K172: 4900 | M172: 725 | N172: 330 | O172: 1700 | Q172: 725 | R172: 330 | S172: 1100
D173: 167 | E173: 75 | F173: 943 | G173: 10200 | I173: 807 | J173: 223 | K173: 9200 | M173: 807 | N173: 223 | O173: 26300 | Q173: 807 | R173: 223 | S173: 33800
D174: 168 | E174: 635 | F174: 696 | G174: 5800 | I174: 198 | J174: 830 | K174: 2200 | M174: 198 | N174: 830 | O174: 5800 | Q174: 198 | R174: 830 | S174: 7100
D175: 169 | E175: 409 | F175: 849 | G175: 10200 | I175: 299 | J175: 130 | K175: 4000 | M175: 299 | N175: 130 | O175: 10600 | Q175: 299 | R175: 130 | S175: 15300
D176: 170 | E176: 371 | F176: 273 | G176: 2300 | I176: 963 | J176: 430 | K176: 6600 | M176: 963 | N176: 430 | O176: 19500 | Q176: 963 | R176: 430 | S176: 15200
D177: 171 | E177: 445 | F177: 618 | G177: 7800 | I177: 909 | J177: 83 | K177: 4700 | M177: 909 | N177: 83 | O177: 17100 | Q177: 909 | R177: 83 | S177: 11300
D178: 172 | E178: 192 | F178: 475 | G178: 6300 | I178: 627 | J178: 7 | K178: 5200 | M178: 627 | N178: 7 | O178: 20700 | Q178: 627 | R178: 7 | S178: 15200
D179: 173 | E179: 637 | F179: 71 | G179: 4000 | I179: 609 | J179: 733 | K179: 3900 | M179: 609 | N179: 733 | O179: 1200 | Q179: 609 | R179: 733 | S179: 900
D180: 174 | E180: 189 | F180: 758 | G180: 2800 | I180: 86 | J180: 454 | K180: 6100 | M180: 86 | N180: 454 | O180: 19300 | Q180: 86 | R180: 454 | S180: 12600
D181: 175 | E181: 331 | F181: 592 | G181: 9500 | I181: 209 | J181: 60 | K181: 8600 | M181: 209 | N181: 60 | O181: 26400 | Q181: 209 | R181: 60 | S181: 21000
D182: 176 | E182: 291 | F182: 539 | G182: 1500 | I182: 1 | J182: 691 | K182: 4400 | M182: 1 | N182: 691 | O182: 17600 | Q182: 1 | R182: 691 | S182: 10000
D183: 177 | E183: 57 | F183: 86 | G183: 4900 | I183: 840 | J183: 532 | K183: 9000 | M183: 840 | N183: 532 | O183: 23400 | Q183: 840 | R183: 532 | S183: 34200
D184: 178 | E184: 742 | F184: 832 | G184: 1800 | I184: 37 | J184: 654 | K184: 5900 | M184: 37 | N184: 654 | O184: 16100 | Q184: 37 | R184: 654 | S184: 23100
D185: 179 | E185: 930 | F185: 948 | G185: 9400 | I185: 423 | J185: 754 | K185: 8700 | M185: 423 | N185: 754 | O185: 2200 | Q185: 423 | R185: 754 | S185: 4200
D186: 180 | E186: 490 | F186: 563 | G186: 9700 | I186: 775 | J186: 441 | K186: 2000 | M186: 775 | N186: 441 | O186: 600 | Q186: 775 | R186: 441 | S186: 1000
D187: 181 | E187: 646 | F187: 233 | G187: 10200 | I187: 282 | J187: 366 | K187: 6000 | M187: 282 | N187: 366 | O187: 2300 | Q187: 282 | R187: 366 | S187: 2800
D188: 182 | E188: 160 | F188: 627 | G188: 5800 | I188: 6 | J188: 837 | K188: 2200 | M188: 6 | N188: 837 | O188: 5300 | Q188: 6 | R188: 837 | S188: 5200
D189: 183 | E189: 218 | F189: 22 | G189: 3500 | I189: 725 | J189: 32 | K189: 1700 | M189: 725 | N189: 32 | O189: 3400 | Q189: 725 | R189: 32 | S189: 3900
D190: 184 | E190: 704 | F190: 243 | G190: 3900 | I190: 346 | J190: 460 | K190: 2300 | M190: 346 | N190: 460 | O190: 600 | Q190: 346 | R190: 460 | S190: 900
D191: 185 | E191: 628 | F191: 387 | G191: 4500 | I191: 842 | J191: 622 | K191: 10000 | M191: 842 | N191: 622 | O191: 31700 | Q191: 842 | R191: 622 | S191: 28700
D192: 186 | E192: 251 | F192: 145 | G192: 10000 | I192: 75 | J192: 588 | K192: 1600 | M192: 75 | N192: 588 | O192: 4300 | Q192: 75 | R192: 588 | S192: 4800
D193: 187 | E193: 491 | F193: 934 | G193: 3100 | I193: 49 | J193: 718 | K193: 9500 | M193: 49 | N193: 718 | O193: 35600 | Q193: 49 | R193: 718 | S193: 24700
D194: 188 | E194: 144 | F194: 422 | G194: 2700 | I194: 221 | J194: 668 | K194: 1200 | M194: 221 | N194: 668 | O194: 400 | Q194: 221 | R194: 668 | S194: 500
D195: 189 | E195: 823 | F195: 662 | G195: 2600 | I195: 742 | J195: 28 | K195: 10500 | M195: 742 | N195: 28 | O195: 21700 | Q195: 742 | R195: 28 | S195: 25200
D196: 190 | E196: 234 | F196: 613 | G196: 9600 | I196: 202 | J196: 912 | K196: 6100 | M196: 202 | N196: 912 | O196: 19300 | Q196: 202 | R196: 912 | S196: 23700
D197: 191 | E197: 251 | F197: 846 | G197: 10700 | I197: 470 | J197: 966 | K197: 1000 | M197: 470 | N197: 966 | O197: 3200 | Q197: 470 | R197: 966 | S197: 2400
D198: 192 | E198: 936 | F198: 837 | G198: 8500 | I198: 629 | J198: 220 | K198: 7700 | M198: 629 | N198: 220 | O198: 3000 | Q198: 629 | R198: 220 | S198: 2800
D199: 193 | E199: 411 | F199: 416 | G199: 6100 | I199: 991 | J199: 707 | K199: 2300 | M199: 991 | N199: 707 | O199: 9100 | Q199: 991 | R199: 707 | S199: 7100
D200: 194 | E200: 687 | F200: 655 | G200: =ROUND(1000+10000*RAND(),-2) -> 7100 | I200: 368 | J200: 430 | K200: 2400 | M200: 368 | N200: 430 | O200: =ROUND(IF(OR(M200<200,M200>800,N200<200,N200>800),K200*(2+2*RAND()),K200*(0.2+0.3*RAND())),-2) -> 700 | Q200: 368 | R200: 430 | S200: 1200
D201: 195 | E201: 519 | F201: 374 | G201: 5600 | I201: 230 | J201: 823 | K201: 8000 | M201: 230 | N201: 823 | O201: 26800 | Q201: 230 | R201: 823 | S201: 30000
D202: 196 | E202: 25 | F202: 628 | G202: 5700 | I202: 513 | J202: 447 | K202: 7000 | M202: 513 | N202: 447 | O202: 3500 | Q202: 513 | R202: 447 | S202: 2800
D203: 197 | E203: 834 | F203: 551 | G203: 1200 | I203: 748 | J203: 611 | K203: 4800 | M203: 748 | N203: 611 | O203: 2100 | Q203: 748 | R203: 611 | S203: 1300
D204: 198 | E204: 9 | F204: 341 | G204: 8800 | I204: 574 | J204: 806 | K204: 6800 | M204: 574 | N204: 806 | O204: 17100 | Q204: 574 | R204: 806 | S204: 24300
... 2 more rows
